[Event "Tournoi fermé pour norme de MI de Créon 2025"]
[Site "CREON, France"]
[Date "2025.07.29"]
[Round "3.5"]
[White "Villegas, Pierre"]
[Black "Llari, Marc"]
[Result "1/2-1/2"]
[TimeControl "1h30/40 - 30' + [30'']"]
[WhiteElo "2291"]
[BlackElo "2341"]

1. d4 {[%clk 01:30:55]} {[%emt 00:00:04]} Nf6 {[%clk 01:30:57]} {[%emt
00:00:05]} 2. c4 {[%clk 01:31:02]} {[%emt 00:00:22]} e6 {[%clk 01:31:25]}
{[%emt 00:00:03]} 3. Nc3 {[%clk 01:30:44]} {[%emt 00:00:48]} Bb4 {[%clk
01:31:49]} {[%emt 00:00:06]} 4. e3 {[%clk 01:30:15]} {[%emt 00:00:59]} O-O
{[%clk 01:32:02]} {[%emt 00:00:16]} 5. Bd2 {[%clk 01:29:52]} {[%emt 00:00:55]}
b6 {[%clk 01:31:54]} {[%emt 00:00:37]} 6. Nf3 {[%clk 01:28:59]} {[%emt
00:01:23]} d5 {[%clk 01:31:30]} {[%emt 00:00:54]} 7. cxd5 {[%clk 01:26:37]}
{[%emt 00:02:52]} exd5 {[%clk 01:31:15]} {[%emt 00:00:46]} 8. Rc1 {[%clk
01:26:58]} {[%emt 00:00:08]} Re8 {[%clk 01:31:00]} {[%emt 00:00:45]} 9. Be2
{[%clk 01:19:33]} {[%emt 00:07:56]} c5 {[%clk 01:27:14]} {[%emt 00:04:14]} 10.
a3 {[%clk 01:16:49]} {[%emt 00:03:16]} Bxc3 {[%clk 01:25:06]} {[%emt 00:02:37]}
11. Bxc3 {[%clk 01:16:56]} {[%emt 00:00:23]} c4 {[%clk 01:25:19]} {[%emt
00:00:18]} 12. b3 {[%clk 01:11:25]} {[%emt 00:06:01]} b5 {[%clk 01:24:59]}
{[%emt 00:00:49]} 13. Nd2 {[%clk 01:02:04]} {[%emt 00:09:51]} Nc6 {[%clk
01:23:48]} {[%emt 00:01:41]} 14. Bf3 {[%clk 01:00:16]} {[%emt 00:02:19]} Qd6
{[%clk 01:21:07]} {[%emt 00:03:11]} 15. O-O {[%clk 00:51:52]} {[%emt 00:08:53]}
Bf5 {[%clk 01:19:12]} {[%emt 00:02:24]} 16. Re1 {[%clk 00:40:39]} {[%emt
00:11:45]} Bd3 {[%clk 01:16:48]} {[%emt 00:02:54]} 17. bxc4 {[%clk 00:36:44]}
{[%emt 00:04:26]} bxc4 {[%clk 01:16:30]} {[%emt 00:00:46]} 18. Nb3 {[%clk
00:32:09]} {[%emt 00:05:05]} Nd7 {[%clk 00:52:00]} {[%emt 00:25:00]} 19. Nc5
{[%clk 00:29:14]} {[%emt 00:03:25]} Nxc5 {[%clk 00:47:52]} {[%emt 00:04:38]} 20.
dxc5 {[%clk 00:29:39]} {[%emt 00:00:05]} Qxc5 {[%clk 00:48:03]} {[%emt
00:00:19]} 21. Bxg7 {[%clk 00:29:07]} {[%emt 00:01:02]} Kxg7 {[%clk 00:48:27]}
{[%emt 00:00:06]} 22. Qxd3 {[%clk 00:29:33]} {[%emt 00:00:04]} cxd3 {[%clk
00:48:50]} {[%emt 00:00:07]} 23. Rxc5 {[%clk 00:30:01]} {[%emt 00:00:02]} Ne5
{[%clk 00:49:06]} {[%emt 00:00:13]} 24. Rd1 {[%clk 00:25:04]} {[%emt 00:05:28]}
Rac8 {[%clk 00:43:06]} {[%emt 00:06:30]} 25. Rxd5 {[%clk 00:16:11]} {[%emt
00:09:23]} Rcd8 {[%clk 00:43:25]} {[%emt 00:00:11]} 26. Rxd8 {[%clk 00:15:50]}
{[%emt 00:00:51]} Nxf3+ {[%clk 00:43:05]} {[%emt 00:00:50]} 27. gxf3 {[%clk
00:16:16]} {[%emt 00:00:04]} Rxd8 {[%clk 00:43:27]} {[%emt 00:00:08]} 28. Kf1
{[%clk 00:16:30]} {[%emt 00:00:16]} Kg6 {[%clk 00:43:51]} {[%emt 00:00:06]} 29.
Ke1 {[%clk 00:16:44]} {[%emt 00:00:16]} Kh5 {[%clk 00:40:48]} {[%emt 00:03:34]}
1/2-1/2

[ePGN "0.1;DGT LiveChess/2.2.7"]

[Event "Tournoi fermé pour norme de MI de Créon 2025"]
[Site "CREON, France"]
[Date "2025.07.30"]
[Round "4.1"]
[White "Mohammad Nubairshah"]
[Black "Lacan-Rus, David"]
[Result "1-0"]
[TimeControl "1h30/40 - 30' + [30'']"]
[WhiteElo "2378"]
[BlackElo "2369"]

1. Nf3 {[%emt 00:25:25]} Nf6 {[%emt 00:00:03]} 2. g3 {[%emt 00:00:01]} g6
{[%emt 00:00:04]} 3. b3 Bg7 {[%emt 00:00:05]} 4. Bb2 {[%emt 00:00:01]} d6
{[%emt 00:00:07]} 5. d4 O-O {[%emt 00:00:07]} 6. Bg2 {[%emt 00:00:01]} c5
{[%emt 00:00:03]} 7. c4 d5 {[%emt 00:00:04]} 8. Nbd2 {[%emt 00:00:01]} Nc6
{[%emt 00:00:05]} 9. dxc5 {[%emt 00:00:03]} Qa5 {[%emt 00:00:05]} 10. a3 {[%emt
00:00:01]} Qxc5 {[%emt 00:00:05]} 11. b4 {[%emt 00:00:01]} Qd6 {[%emt
00:00:08]} 12. O-O {[%emt 00:00:03]} Rd8 {[%emt 00:00:02]} 13. Rc1 {[%emt
00:00:09]} a6 {[%emt 00:00:09]} 14. cxd5 {[%emt 00:00:05]} Nxd5 {[%emt
00:00:04]} 15. Ne4 {[%emt 00:00:06]} Qc7 {[%emt 00:00:02]} 16. Bxg7 {[%emt
00:00:07]} Kxg7 {[%emt 00:00:03]} 17. Qb3 {[%emt 00:00:06]} Qb6 {[%emt
00:00:09]} 18. Rfd1 {[%emt 00:00:01]} Nf6 {[%emt 00:00:07]} 19. Nfg5 {[%emt
00:00:05]} Rf8 {[%emt 00:00:06]} 20. Qb2 {[%emt 00:00:04]} Rd8 {[%emt
00:00:05]} 21. Qb3 {[%emt 00:00:06]} Rf8 {[%emt 00:00:03]} 22. Nc5 Bg4 {[%emt
00:00:07]} 23. Qe3 {[%emt 00:00:05]} Qa7 {[%emt 00:00:05]} 24. h3 {[%emt
00:00:02]} Bf5 {[%emt 00:00:04]} 25. g4 Bc8 {[%emt 00:00:06]} 26. Qc3 {[%emt
00:00:01]} Kg8 {[%emt 00:00:13]} 27. Nge4 {[%emt 00:00:07]} Nxe4 {[%emt
00:00:06]} 28. Bxe4 {[%emt 00:00:02]} Qb6 {[%emt 00:00:11]} 29. Rd5 {[%emt
00:00:02]} Nd8 {[%emt 00:00:11]} 30. Qe5 {[%emt 00:00:07]} Nc6 {[%emt
00:00:10]} 31. Qf4 {[%emt 00:00:01]} Be6 {[%emt 00:00:09]} 32. Rh5 {[%emt
00:00:06]} gxh5 {[%emt 00:00:02]} 33. Qh6 {[%emt 00:00:07]} f5 {[%emt
00:00:05]} 34. Qxe6+ {[%emt 00:00:05]} Kh8 {[%emt 00:00:10]} 35. Nd7 {[%emt
00:00:02]} Qd4 {[%emt 00:00:09]} 36. Bxc6 {[%emt 00:00:07]} bxc6 {[%emt
00:00:03]} 37. Nxf8 {[%emt 00:00:15]} Rxf8 {[%emt 00:00:04]} 38. Qxe7 {[%emt
00:00:07]} Rg8 {[%emt 00:00:06]} 39. g5 {[%emt 00:00:01]} h6 {[%emt 00:00:07]}
40. h4 {[%emt 00:00:04]} hxg5 {[%emt 00:00:02]} 41. Qe6 {[%emt 00:00:11]} gxh4+
{[%emt 00:00:02]} 42. Kh1 {[%emt 00:00:07]} Qg7 {[%emt 00:00:03]} 43. Qxc6
{[%emt 00:00:07]} Qg5 {[%emt 00:00:20]} 44. Rd1 {[%emt 00:00:01]} Rg7 {[%emt
00:00:07]} 45. f4 {[%emt 00:00:05]} Qg6 {[%emt 00:00:08]} 46. Qxg6 {[%emt
00:00:10]} Rxg6 {[%emt 00:00:02]} 47. Rd5 {[%emt 00:00:12]} Rf6 {[%emt
00:00:01]} 48. Kg2 {[%emt 00:00:11]} Kh7 {[%emt 00:00:01]} 49. Kh3 {[%emt
00:00:05]} Kg6 {[%emt 00:00:05]} 50. Kxh4 {[%emt 00:00:07]} Rc6 {[%emt
00:00:11]} 51. Rc5 Re6 {[%emt 00:00:28]} 52. Re5 Rc6 53. Ra5 Rb6 {[%emt
00:00:11]} 54. e3 {[%emt 00:00:05]} Re6 {[%emt 00:00:01]} 55. e4 {[%emt
00:00:06]} Rxe4 {[%emt 00:00:04]} 56. Rxa6+ {[%emt 00:00:10]} Kf7 {[%emt
00:00:19]} 57. Kg5 {[%emt 00:00:05]} h4 {[%emt 00:00:05]} 58. Kxf5 {[%emt
00:00:01]} Re3 {[%emt 00:00:16]} 59. Kg4 {[%emt 00:00:35]} h3 {[%emt 00:00:09]}
60. Rh6 {[%emt 00:00:01]} Rxa3 {[%emt 00:00:07]} 61. Rxh3 {[%emt 00:00:06]} Ra6
{[%emt 00:00:16]} 62. Rh7+ {[%emt 00:00:22]} Kg6 {[%emt 00:00:07]} 63. Rb7 1-0

[Event "Tournoi fermé pour norme de MI de Créon 2025"]
[Site "CREON, France"]
[Date "2025.07.30"]
[Round "4.3"]
[White "Le Hetet, Nicolas"]
[Black "Kocharin, Timur"]
[Result "1/2-1/2"]
[TimeControl "1h30/40 - 30' + [30'']"]
[WhiteElo "2288"]
[BlackElo "2302"]

1. e4 {[%emt 00:25:35]} c5 2. Nc3 {[%emt 00:00:02]} a6 {[%emt 00:00:02]} 3. g3
{[%emt 00:00:01]} b5 {[%emt 00:00:03]} 4. Bg2 {[%emt 00:00:04]} Bb7 {[%emt
00:00:01]} 5. d3 {[%emt 00:00:02]} Nc6 {[%emt 00:00:03]} 6. Nh3 {[%emt
00:00:03]} e6 {[%emt 00:00:01]} 7. O-O {[%emt 00:00:05]} d6 {[%emt 00:00:01]} 8.
f4 {[%emt 00:00:03]} Nf6 {[%emt 00:00:01]} 9. f5 {[%emt 00:00:03]} e5 10. Nd5
{[%emt 00:00:03]} Be7 {[%emt 00:00:09]} 11. c3 {[%emt 00:00:01]} Nxd5 {[%emt
00:00:05]} 12. exd5 {[%emt 00:00:02]} Nb8 {[%emt 00:00:05]} 13. Qh5 {[%emt
00:00:01]} Nd7 {[%emt 00:00:04]} 14. Ng5 {[%emt 00:00:03]} Bxg5 {[%emt
00:00:03]} 15. Bxg5 {[%emt 00:00:04]} Nf6 {[%emt 00:00:03]} 16. Qh4 {[%emt
00:00:03]} h6 17. a4 {[%emt 00:00:03]} Kd7 18. Bxf6 {[%emt 00:00:04]} Qxf6
{[%emt 00:00:02]} 19. Qxf6 {[%emt 00:00:02]} gxf6 {[%emt 00:00:02]} 20. Kf2
{[%emt 00:00:03]} 1/2-1/2

[Event "Tournoi fermé pour norme de MI de Créon 2025"]
[Site "CREON, France"]
[Date "2025.07.30"]
[Round "4.2"]
[White "Jerez Perez, Alfonso"]
[Black "Lamaze, Simon"]
[Result "0-1"]
[TimeControl "1h30/40 - 30' + [30'']"]
[WhiteElo "2328"]
[BlackElo "2458"]

1. e4 {[%emt 00:00:06]} c5 2. c3 {[%emt 00:00:02]} Nf6 {[%emt 00:00:01]} 3. e5
{[%emt 00:00:01]} Nd5 4. Nf3 {[%emt 00:00:01]} e6 {[%emt 00:00:10]} 5. g3 Nc6
{[%emt 00:00:08]} 6. Bg2 {[%emt 00:00:01]} b6 {[%emt 00:00:06]} 7. O-O {[%emt
00:00:02]} Bb7 {[%emt 00:00:01]} 8. Re1 {[%emt 00:00:06]} Rb8 9. d4 {[%emt
00:00:02]} cxd4 {[%emt 00:00:01]} 10. Nxd4 {[%emt 00:00:02]} Nxd4 {[%emt
00:00:02]} 11. Qxd4 {[%emt 00:00:03]} Ne7 {[%emt 00:00:02]} 12. Bxb7 {[%emt
00:00:02]} Rxb7 {[%emt 00:00:04]} 13. Bg5 {[%emt 00:00:04]} Qc8 {[%emt
00:00:16]} 14. Bxe7 {[%emt 00:00:03]} Bxe7 {[%emt 00:00:02]} 15. Nd2 {[%emt
00:00:03]} O-O {[%emt 00:00:06]} 16. Ne4 {[%emt 00:00:01]} Qc6 17. Rad1 {[%emt
00:00:05]} Rc8 {[%emt 00:00:01]} 18. Nd6 {[%emt 00:00:07]} Bxd6 {[%emt
00:00:01]} 19. exd6 {[%emt 00:00:02]} Qc4 {[%emt 00:00:24]} 20. Qxc4 {[%emt
00:00:01]} Rxc4 {[%emt 00:00:02]} 21. Rd4 Rc6 22. a4 {[%emt 00:00:06]} f6
{[%emt 00:00:01]} 23. f4 {[%emt 00:00:04]} Kf7 {[%emt 00:00:07]} 24. Kf2 Rb8
{[%emt 00:00:12]} 25. c4 {[%emt 00:00:01]} a6 26. Re3 {[%emt 00:00:30]} Rbc8
{[%emt 00:00:19]} 27. b3 {[%emt 00:00:01]} Rc5 28. b4 {[%emt 00:00:11]} R5c6
{[%emt 00:00:01]} 29. Rc3 {[%emt 00:00:01]} 0-1

[Event "Tournoi fermé pour norme de MI de Créon 2025"]
[Site "CREON, France"]
[Date "2025.07.30"]
[Round "4.5"]
[White "Pichon, Ewen"]
[Black "Villegas, Pierre"]
[Result "1/2-1/2"]
[TimeControl "1h30/40 - 30' + [30'']"]
[WhiteElo "2311"]
[BlackElo "2291"]

1. d4 {[%emt 00:32:40]} Nf6 2. c4 {[%emt 00:00:01]} e6 {[%emt 00:00:01]} 3. Nf3
{[%emt 00:00:05]} Bb4+ {[%emt 00:00:01]} 4. Nbd2 {[%emt 00:00:09]} b6 {[%emt
00:00:01]} 5. a3 {[%emt 00:00:02]} Bxd2+ {[%emt 00:00:14]} 6. Qxd2 {[%emt
00:00:02]} Bb7 {[%emt 00:00:02]} 7. e3 {[%emt 00:00:03]} d6 {[%emt 00:00:02]} 8.
b4 {[%emt 00:00:09]} a5 9. Bb2 {[%emt 00:00:07]} Nbd7 {[%emt 00:00:11]} 10. Be2
{[%emt 00:00:06]} axb4 {[%emt 00:00:09]} 11. axb4 {[%emt 00:00:02]} Rxa1+
{[%emt 00:00:03]} 12. Bxa1 {[%emt 00:00:02]} Ne4 {[%emt 00:00:16]} 13. Qc2
{[%emt 00:00:01]} Ng5 {[%emt 00:00:16]} 14. d5 {[%emt 00:00:06]} exd5 {[%emt
00:00:04]} 15. cxd5 {[%emt 00:00:02]} Bxd5 {[%emt 00:00:14]} 16. Qf5 {[%emt
00:00:16]} Bxf3 {[%emt 00:00:19]} 17. gxf3 {[%emt 00:00:05]} Ne6 {[%emt
00:00:11]} 18. Bc4 {[%emt 00:04:04]} Qe7 {[%emt 00:00:05]} 19. Rg1 {[%emt
00:00:04]} Ne5 {[%emt 00:00:03]} 20. Bd5 {[%emt 00:00:02]} c6 {[%emt 00:00:02]}
21. Bxe5 {[%emt 00:00:02]} dxe5 {[%emt 00:00:03]} 22. Bxc6+ {[%emt 00:00:02]}
Kf8 23. Rg4 {[%emt 00:00:02]} Qf6 {[%emt 00:00:04]} 24. Qd3 {[%emt 00:00:02]}
g6 {[%emt 00:00:03]} 25. Qd6+ {[%emt 00:00:01]} Kg7 {[%emt 00:00:02]} 26. Re4
{[%emt 00:00:02]} Ng5 {[%emt 00:00:01]} 27. Qxf6+ Kxf6 28. Rc4 {[%emt
00:00:09]} Rc8 {[%emt 00:00:03]} 29. Ke2 {[%emt 00:00:02]} Ne6 {[%emt
00:00:03]} 30. Kd3 {[%emt 00:00:01]} Nc5+ {[%emt 00:00:01]} 31. bxc5 {[%emt
00:00:02]} 1/2-1/2

[Event "Tournoi fermé pour norme de MI de Créon 2025"]
[Site "CREON, France"]
[Date "2025.07.30"]
[Round "4.4"]
[White "Malka, Samuel"]
[Black "Llari, Marc"]
[Result "1-0"]
[TimeControl "1h30/40 - 30' + [30'']"]
[WhiteElo "2268"]
[BlackElo "2341"]

1. d4 {[%emt 01:06:49]} Nf6 {[%emt 00:00:01]} 2. c4 {[%emt 00:00:02]} e6 3. Nf3
{[%emt 00:00:03]} Bb4+ {[%emt 00:00:02]} 4. Nbd2 {[%emt 00:00:03]} b6 {[%emt
00:00:01]} 5. a3 {[%emt 00:00:02]} Bxd2+ {[%emt 00:00:02]} 6. Nxd2 {[%emt
00:00:15]} Bb7 {[%emt 00:00:04]} 7. b3 {[%emt 00:00:01]} d6 {[%emt 00:00:03]} 8.
Bb2 Nbd7 {[%emt 00:00:03]} 9. e3 {[%emt 00:00:04]} Qe7 {[%emt 00:00:06]} 10.
Bd3 {[%emt 00:00:14]} Bxg2 {[%emt 00:00:04]} 11. Rg1 {[%emt 00:00:04]} Bb7
{[%emt 00:00:04]} 12. Rxg7 {[%emt 00:00:02]} O-O-O {[%emt 00:00:07]} 13. Qe2
{[%emt 00:00:05]} Rhg8 {[%emt 00:00:01]} 14. Rg3 {[%emt 00:00:06]} h5 15. O-O-O
{[%emt 00:00:05]} h4 {[%emt 00:00:06]} 16. Rgg1 c5 {[%emt 00:00:12]} 17. f4
{[%emt 00:00:21]} Kb8 18. Kb1 {[%emt 00:00:06]} h3 19. e4 {[%emt 00:00:10]}
cxd4 {[%emt 00:00:13]} 20. e5 {[%emt 00:00:11]} Rxg1 {[%emt 00:00:08]} 21. Rxg1
{[%emt 00:00:03]} dxe5 {[%emt 00:00:11]} 22. fxe5 {[%emt 00:00:02]} Ne8 {[%emt
00:00:14]} 23. Rg4 {[%emt 00:00:28]} f6 {[%emt 00:00:04]} 24. exf6 {[%emt
00:00:05]} Nexf6 {[%emt 00:00:23]} 25. Rxd4 {[%emt 00:00:11]} e5 26. Rh4 {[%emt
00:00:17]} Bg2 {[%emt 00:00:35]} 27. Bf5 {[%emt 00:00:14]} Nd5 {[%emt
00:00:14]} 28. Rh7 {[%emt 00:00:10]} Qf6 {[%emt 00:00:04]} 29. Bc2 {[%emt
00:00:47]} Nf4 {[%emt 00:00:13]} 30. Qe3 {[%emt 00:00:08]} Qe6 {[%emt
00:00:22]} 31. Rxd7 {[%emt 00:00:37]} Qxd7 {[%emt 00:00:15]} 32. Bxe5+ {[%emt
00:00:08]} Kb7 {[%emt 00:00:11]} 33. Bxf4 {[%emt 00:00:09]} Re8 {[%emt
00:00:01]} 34. Qc3 {[%emt 00:02:28]} Re2 {[%emt 00:00:02]} 35. Bd3 {[%emt
00:00:04]} Rf2 {[%emt 00:00:21]} 36. Bg3 {[%emt 00:00:06]} Rf7 {[%emt
00:00:12]} 37. Kc2 {[%emt 00:00:10]} Rg7 {[%emt 00:00:02]} 38. Qe5 {[%emt
00:00:09]} Rg8 {[%emt 00:01:05]} 39. Be4+ {[%emt 00:00:23]} Ka6 {[%emt
00:00:07]} 40. b4 Bxe4+ {[%emt 00:00:13]} 41. Nxe4 {[%emt 00:00:01]} Rd8 {[%emt
00:00:23]} 42. b5+ Kb7 {[%emt 00:00:13]} 43. Nd6+ {[%emt 00:00:03]} 1-0

[ePGN "0.1;DGT LiveChess/2.2.7"]

[Event "Tournoi fermé pour norme de MI de Créon 2025"]
[Site "CREON, France"]
[Date "2025.07.31"]
[Round "5.4"]
[White "Villegas, Pierre"]
[Black "Le Hetet, Nicolas"]
[Result "1/2-1/2"]
[TimeControl "1h30/40 - 30' + [30'']"]
[WhiteElo "2291"]
[BlackElo "2288"]

1. Nf3 {[%clk 01:30:53]} d5 {[%clk 01:30:53]} {[%emt 00:00:07]} 2. e3 {[%clk
01:31:14]} {[%emt 00:00:09]} Nf6 {[%clk 01:31:14]} {[%emt 00:00:10]} 3. c4
{[%clk 01:31:33]} {[%emt 00:00:10]} c6 {[%clk 01:31:33]} {[%emt 00:00:10]} 4.
Nc3 {[%clk 01:31:48]} {[%emt 00:00:15]} e6 {[%clk 01:31:40]} {[%emt 00:00:25]}
5. b3 {[%clk 01:31:58]} {[%emt 00:00:20]} Nbd7 {[%clk 01:32:00]} {[%emt
00:00:09]} 6. Bb2 {[%clk 01:32:21]} {[%emt 00:00:07]} Be7 {[%clk 01:32:17]}
{[%emt 00:00:12]} 7. d4 {[%clk 01:32:04]} {[%emt 00:00:48]} O-O {[%clk
01:32:26]} {[%emt 00:00:20]} 8. Be2 {[%clk 01:32:15]} {[%emt 00:00:19]} b6
{[%clk 01:32:32]} {[%emt 00:00:25]} 9. O-O {[%clk 01:32:33]} {[%emt 00:00:12]}
Bb7 {[%clk 01:32:47]} {[%emt 00:00:16]} 10. Qc2 {[%clk 01:31:39]} {[%emt
00:01:24]} c5 {[%clk 01:30:14]} {[%emt 00:03:03]} 11. cxd5 {[%clk 01:26:21]}
{[%emt 00:05:48]} exd5 {[%clk 01:29:50]} {[%emt 00:00:54]} 12. Rfd1 {[%clk
01:26:11]} {[%emt 00:00:40]} Rc8 {[%clk 01:26:37]} {[%emt 00:03:43]} 13. dxc5
{[%clk 01:25:02]} {[%emt 00:01:39]} Nxc5 {[%clk 01:25:37]} {[%emt 00:01:29]} 14.
Bd3 {[%clk 01:18:54]} {[%emt 00:06:38]} Nxd3 {[%clk 01:13:50]} {[%emt
00:12:17]} 15. Qxd3 {[%clk 01:19:13]} {[%emt 00:00:12]} Ne4 {[%clk 01:14:02]}
{[%emt 00:00:18]} 16. Nxe4 {[%clk 01:06:37]} {[%emt 00:13:06]} dxe4 {[%clk
01:14:23]} {[%emt 00:00:10]} 17. Qxd8 {[%clk 01:07:00]} {[%emt 00:00:06]} Rfxd8
{[%clk 01:14:47]} {[%emt 00:00:07]} 18. Rxd8+ {[%clk 01:07:18]} {[%emt
00:00:12]} Bxd8 {[%clk 01:14:44]} {[%emt 00:00:33]} 19. Nd4 {[%clk 01:07:44]}
{[%emt 00:00:05]} Bf6 {[%clk 01:15:01]} {[%emt 00:00:12]} 20. Rc1 {[%clk
01:07:46]} {[%emt 00:00:28]} Bxd4 {[%clk 01:15:16]} {[%emt 00:00:15]} 21. Rxc8+
{[%clk 01:08:08]} {[%emt 00:00:08]} 1/2-1/2

[Event "Tournoi fermé pour norme de MI de Créon 2025"]
[Site "CREON, France"]
[Date "2025.07.31"]
[Round "5.1"]
[White "Lamaze, Simon"]
[Black "Malka, Samuel"]
[Result "1-0"]
[TimeControl "1h30/40 - 30' + [30'']"]
[WhiteElo "2458"]
[BlackElo "2268"]

1. e4 {[%clk 01:30:57]} {[%emt 00:00:02]} e5 {[%clk 01:30:43]} {[%emt
00:00:18]} 2. Nf3 {[%clk 01:31:20]} {[%emt 00:00:07]} Nc6 {[%clk 01:31:08]}
{[%emt 00:00:05]} 3. Bc4 {[%clk 01:31:48]} {[%emt 00:00:04]} Nf6 {[%clk
01:31:21]} {[%emt 00:00:15]} 4. d3 {[%clk 01:32:13]} {[%emt 00:00:05]} Bc5
{[%clk 01:31:39]} {[%emt 00:00:13]} 5. Bg5 {[%clk 01:32:39]} Be7 {[%clk
01:31:39]} 6. a4 {[%clk 01:32:39]} d6 {[%clk 01:31:39]} 7. Nc3 {[%clk
01:32:39]} O-O {[%clk 01:31:39]} 8. O-O {[%clk 01:32:39]} h6 {[%clk 01:31:39]}
9. Bxf6 {[%clk 01:32:39]} Bxf6 {[%clk 01:31:39]} 10. Nd5 {[%clk 01:32:39]} g6
{[%clk 01:31:39]} 11. Qd2 {[%clk 01:32:39]} Bg7 {[%clk 01:31:39]} 12. h4 {[%clk
01:32:39]} Kh7 {[%clk 01:31:39]} 13. c3 {[%clk 01:32:39]} f5 {[%clk 01:31:39]}
14. exf5 {[%clk 01:32:39]} gxf5 {[%clk 01:31:39]} 15. d4 {[%clk 01:32:39]} e4
{[%clk 01:31:39]} 16. Ne1 {[%clk 01:32:39]} f4 {[%clk 01:31:39]} 17. Nxf4
{[%clk 01:32:39]} Qxh4 {[%clk 01:31:39]} 18. g3 {[%clk 01:32:39]} Qg5 {[%clk
01:31:39]} 19. Qe3 {[%clk 01:32:39]} Bf5 {[%clk 01:31:39]} 20. Neg2 {[%clk
01:32:39]} Rae8 {[%clk 01:31:39]} 21. Nh4 {[%clk 01:32:39]} Ne7 {[%clk
01:31:39]} 22. Be6 {[%clk 01:32:39]} Rf6 {[%clk 01:31:39]} 23. Nxf5 {[%clk
01:32:39]} Nxf5 {[%clk 01:31:39]} 24. Qxe4 {[%clk 01:32:39]} Kh8 {[%clk
01:31:39]} 25. d5 {[%clk 01:32:39]} Nh4 {[%clk 01:31:39]} 26. Nh3 {[%clk
01:32:39]} Nf3+ {[%clk 01:31:39]} 27. Qxf3 {[%clk 01:32:39]} Rxf3 {[%clk
01:31:39]} 28. Nxg5 {[%clk 01:32:39]} hxg5 {[%clk 01:31:39]} 29. Kg2 {[%clk
01:32:39]} Rf6 {[%clk 01:31:39]} 30. Rh1+ {[%clk 01:32:39]} Bh6 {[%clk
01:31:39]} 31. a5 {[%clk 01:32:39]} Kg7 {[%clk 01:31:39]} 32. a6 {[%clk
01:32:39]} b6 {[%clk 01:31:39]} 33. Rhe1 {[%clk 01:32:39]} Ref8 {[%clk
01:31:39]} 34. Re2 {[%clk 01:32:39]} Re8 {[%clk 01:31:39]} 35. Rae1 {[%clk
00:24:53]} {[%emt 03:06:27]} Rff8 {[%clk 00:01:35]} {[%emt 00:01:56]} 36. Bg4
{[%clk 00:24:19]} {[%emt 00:01:04]} Rxe2 {[%clk 00:01:50]} {[%emt 00:00:15]} 37.
Rxe2 {[%clk 00:24:47]} {[%emt 00:00:02]} Rf7 {[%clk 00:01:27]} {[%emt
00:00:52]} 38. Bh5 {[%clk 00:25:09]} {[%emt 00:00:09]} 1-0

[Event "Tournoi fermé pour norme de MI de Créon 2025"]
[Site "CREON, France"]
[Date "2025.07.31"]
[Round "5.3"]
[White "Kocharin, Timur"]
[Black "Mohammad Nubairshah"]
[Result "1/2-1/2"]
[TimeControl "1h30/40 - 30' + [30'']"]
[WhiteElo "2302"]
[BlackElo "2378"]

1. e4 {[%clk 01:28:45]} {[%emt 00:02:14]} c6 {[%clk 01:30:44]} {[%emt
00:00:17]} 2. d4 {[%clk 01:28:49]} {[%emt 00:00:25]} d5 {[%clk 01:31:11]}
{[%emt 00:00:04]} 3. e5 {[%clk 01:29:14]} {[%emt 00:00:05]} Bf5 {[%clk
01:31:25]} {[%emt 00:00:16]} 4. h4 {[%clk 01:29:28]} {[%emt 00:00:15]} h5
{[%clk 01:31:52]} {[%emt 00:00:04]} 5. Bd3 {[%clk 01:29:53]} {[%emt 00:00:04]}
Bxd3 {[%clk 01:32:13]} {[%emt 00:00:10]} 6. Qxd3 {[%clk 01:30:18]} {[%emt
00:00:05]} Qa5+ {[%clk 01:32:37]} {[%emt 00:00:06]} 7. Nd2 {[%clk 01:30:42]}
{[%emt 00:00:04]} e6 {[%clk 01:33:04]} {[%emt 00:00:04]} 8. Ngf3 {[%clk
01:31:07]} {[%emt 00:00:04]} Nh6 {[%clk 01:31:58]} {[%emt 00:01:37]} 9. O-O
{[%clk 01:31:22]} {[%emt 00:00:14]} Nf5 {[%clk 01:32:27]} {[%emt 00:00:02]} 10.
Nb3 {[%clk 01:31:38]} {[%emt 00:00:14]} Qa6 {[%clk 01:32:55]} {[%emt 00:00:02]}
11. Qc3 {[%clk 01:32:02]} {[%emt 00:00:06]} Qb6 {[%clk 01:33:24]} {[%emt
00:00:02]} 12. Bg5 {[%clk 01:31:17]} {[%emt 00:01:13]} a5 {[%clk 01:26:38]}
{[%emt 00:07:17]} 13. Qd2 {[%clk 01:21:56]} {[%emt 00:09:51]} Nd7 {[%clk
01:03:05]} {[%emt 00:24:02]} 14. c3 {[%clk 01:21:38]} {[%emt 00:00:48]} Be7
{[%clk 00:55:53]} {[%emt 00:07:42]} 15. Bxe7 {[%clk 01:20:15]} {[%emt
00:01:52]} Nxe7 {[%clk 00:55:53]} {[%emt 00:00:30]} 16. Nc1 {[%clk 01:19:48]}
{[%emt 00:00:57]} Nf5 {[%clk 00:53:07]} {[%emt 00:03:16]} 17. Ne2 {[%clk
01:17:40]} {[%emt 00:02:37]} Qd8 {[%clk 00:41:57]} {[%emt 00:11:41]} 18. Qf4
{[%clk 01:16:09]} {[%emt 00:02:00]} Nf8 {[%clk 00:42:26]} {[%emt 00:00:02]} 19.
g3 {[%clk 01:14:40]} {[%emt 00:01:58]} a4 {[%clk 00:36:52]} {[%emt 00:06:05]}
20. Qd2 {[%clk 01:12:36]} {[%emt 00:02:34]} Nd7 {[%clk 00:34:00]} {[%emt
00:03:23]} 21. Nf4 {[%clk 01:09:12]} {[%emt 00:03:53]} 1/2-1/2